bitfinex/quotes_SOLUSD_20220208
["timestamp","ask_amount","ask_price","bid_price","bid_amount"]
[1644292910225,57.65163544,117.82,117.7,34.9854691]
[1644292910926,12.7455,117.81,117.68,45.7282]
[1644292911125,18.7455,117.81,117.68,45.7282]
[1644292911325,19.94337912,117.81,117.68,45.7282]
[1644292911525,1.19787912,117.8,117.68,45.7282]
[1644292911725,45.24712181,117.79,117.68,79.74146722]
[1644292912125,45.49712181,117.79,117.68,79.74146722]
[1644292912724,58.24462181,117.79,117.65,34.67774579]
[1644292912927,22.8499,117.78,117.65,32.908]
[1644292913125,22.8499,117.78,117.65,22.698]
[1644292913333,24.04777912,117.78,117.65,22.698]
[1644292913629,24.04777912,117.78,117.63,58.5395]
[1644292913828,43.36353368,117.77,117.64,31.57631047]
[1644292914231,43.36353368,117.77,117.64,37.82631047]
[1644292914830,62.11343368,117.77,117.64,37.82631047]
[1644292915331,62.11343368,117.77,117.64,48.03631047]
[1644292915532,62.11343368,117.77,117.64,49.80605626]
[1644292915934,49.36353368,117.77,117.64,49.80605626]
[1644292918033,49.36353368,117.77,117.64,49.30605626]
[1644292918435,49.61353368,117.77,117.64,49.30605626]
[1644292919734,49.36353368,117.77,117.64,49.30605626]
[1644292920337,49.36353368,117.77,117.64,47.53631047]
[1644292920536,50.5614128,117.77,117.64,47.53631047]
[1644292921038,50.8114128,117.77,117.64,47.28631047]
[1644292921237,12.7503,117.76,117.64,47.28631047]
[1644292921438,37.85169771,117.75,117.64,37.07631047]
[1644292921838,43.85169771,117.75,117.63,48.3295]
[1644292922039,96.29483013,117.75,117.6,35.10964419]
[1644292922239,1.19787912,117.73,117.61,6.0]
[1644292922441,12.7559,117.71,117.6,29.7244]
[1644292922640,12.7559,117.71,117.59,121.8586]
[1644292922840,34.27508174,117.7,117.6,36.93344602]
[1644292923040,57.02958174,117.7,117.6,36.93344602]
[1644292923239,28.7545,117.7,117.6,36.93344602]
[1644292924239,48.13573538,117.69,117.6,36.93344602]
[1644292924440,60.89333538,117.69,117.6,36.93344602]
[1644292924641,18.7576,117.69,117.6,36.93344602]
[1644292924843,10.21,117.72,117.61,1.79235892]
[1644292925140,6.0,117.72,117.61,7.79235892]
[1644292925542,40.4645333,117.71,117.62,6.90649455]
[1644292925739,46.4645333,117.71,117.62,5.11413563]
[1644292926344,46.7145333,117.71,117.6,24.1461]
[1644292926942,59.4694333,117.71,117.59,23.6769]
[1644292927140,61.5994866,117.71,117.59,23.6769]
[1644292927341,69.6794333,117.71,117.59,23.6769]
[1644292927542,69.6794333,117.71,117.58,0.60013031]
[1644292927742,118.2656866,117.71,117.58,0.60013031]
[1644292927944,119.46356572,117.71,117.58,0.60013031]
[1644292928346,134.72849554,117.71,117.58,0.60013031]
[1644292929045,1.19787912,117.7,117.58,0.60013031]
[1644292929369,12.7626,117.67,117.58,0.60013031]
[1644292929744,24.6448,117.66,117.58,0.60013031]
[1644292929944,37.25602449,117.65,117.58,0.60013031]
[1644292930145,56.01742449,117.65,117.58,0.60013031]
[1644292930547,58.14747779,117.65,117.58,0.60013031]
[1644292930747,22.8918,117.64,117.58,0.60013031]
[1644292930947,22.8918,117.64,117.58,0.57613031]
[1644292931147,36.25066391,117.63,117.58,0.57613031]
[1644292931451,49.01576391,117.63,117.58,0.57613031]
[1644292931747,55.01576391,117.63,117.58,0.57613031]
[1644292931951,2.1300533,117.62,117.58,0.57613031]
[1644292932146,8.1300533,117.62,117.58,0.57613031]
[1644292932547,2.1300533,117.61,117.58,0.57613031]
[1644292932747,14.8962533,117.61,117.58,3.031e-05]
[1644292932948,20.8962533,117.61,117.58,3.031e-05]
[1644292933149,18.7662,117.61,117.58,3.031e-05]
[1644292933549,6.0,117.61,117.58,3.031e-05]
[1644292934052,23.222,117.63,117.58,3.031e-05]
[1644292934650,35.9862,117.63,117.58,3.031e-05]
[1644292935450,46.1962,117.63,117.58,3.031e-05]
[1644292935850,52.1962,117.63,117.58,3.031e-05]
[1644292936251,52.4462,117.63,117.58,3.031e-05]
[1644292937777,2.1300533,117.62,117.58,3.031e-05]
[1644292937976,12.7655,117.61,117.58,3.031e-05]
[1644292938176,18.7655,117.61,117.58,3.031e-05]
[1644292938777,6.0,117.61,117.58,3.031e-05]
[1644292939179,18.7634,117.63,117.58,3.031e-05]
[1644292941378,28.9734,117.63,117.58,3.031e-05]
[1644292941978,29.2234,117.63,117.58,3.031e-05]
[1644292942177,53.6661,117.63,117.58,3.031e-05]
[1644292942580,28.9734,117.63,117.58,3.031e-05]
[1644292942879,31.1034533,117.63,117.58,3.031e-05]
[1644292943279,12.7678,117.61,117.58,3.031e-05]
[1644292943679,18.7678,117.61,117.58,3.031e-05]
[1644292945089,19.0178,117.61,117.58,3.031e-05]
[1644292947395,18.95670758,117.66,117.58,3.031e-05]
[1644292947695,1.19787912,117.69,117.59,3.03219997]
[1644292947891,27.89543242,117.7,117.59,3.03219997]
[1644292948091,48.61083279,117.69,117.6,2.21458813]
[1644292948290,46.48077949,117.69,117.6,2.21458813]
[1644292948492,46.48077949,117.69,117.58,3.031e-05]
[1644292948691,83.66467949,117.69,117.58,3.031e-05]
[1644292949693,83.66467949,117.69,117.58,36.09777731]
[1644292949893,2.1300533,117.68,117.58,3.031e-05]
[1644292950295,12.7586,117.67,117.58,3.031e-05]
[1644292950993,42.06511349,117.66,117.58,30.95682702]
[1644292951196,48.06511349,117.66,117.58,3.031e-05]
[1644292951993,60.82381349,117.66,117.58,3.031e-05]
[1644292954096,62.95386679,117.66,117.58,3.031e-05]
[1644292954500,61.07381349,117.66,117.58,3.031e-05]
[1644292954897,19.0087,117.66,117.58,3.031e-05]
[1644292955099,6.25,117.66,117.58,3.031e-05]
[1644292955498,0.25,117.66,117.58,3.031e-05]
[1644292955697,6.0,117.66,117.58,3.031e-05]
[1644292956301,74.67508566,117.67,117.58,3.031e-05]
[1644292956699,87.43268566,117.67,117.58,3.031e-05]
[1644292957501,42.9004,117.67,117.58,3.031e-05]
[1644292961506,81.7379862,117.67,117.58,3.031e-05]
[1644292962706,75.7379862,117.67,117.58,11.75673031]
[1644292962907,81.7379862,117.67,117.59,30.61915173]
[1644292963129,75.7379862,117.67,117.59,30.61915173]
[1644292963328,81.7379862,117.67,117.59,30.61915173]
[1644292965832,42.9004,117.67,117.59,30.61915173]
[1644292967434,39.57659983,117.66,117.59,30.61915173]
[1644292967636,39.57659983,117.66,117.58,11.75673031]
[1644292967835,52.33469983,117.66,117.57,36.3159]
[1644292968036,58.33469983,117.66,117.57,24.0559]
[1644292968236,58.58469983,117.66,117.57,24.0559]
[1644292968836,58.58469983,117.66,117.58,32.54072002]
[1644292973938,18.7581,117.66,117.58,32.54072002]
[1644292974139,23.8928,117.67,117.58,47.34506998]
[1644292974339,6.0,117.66,117.58,47.34506998]
[1644292974541,1.19787912,117.7,117.59,12.26]
[1644292974742,1.19787912,117.7,117.59,12.51]
[1644292974944,1.19787912,117.71,117.6,11.30411159]
[1644292975141,35.6226257,117.7,117.61,36.9611]
[1644292975340,35.6226257,117.7,117.62,43.0452299]
[1644292975540,1.19787912,117.71,117.62,55.3052299]
[1644292975741,1.19787912,117.72,117.62,55.5552299]
[1644292975942,1.19787912,117.72,117.62,55.3052299]
[1644292976143,1.44787912,117.72,117.62,55.3052299]
[1644292976545,1.19787912,117.71,117.62,55.3052299]
[1644292976744,57.97498697,117.71,117.62,55.3052299]
[1644292977944,56.77710785,117.71,117.62,55.3052299]
[1644292978546,57.97498697,117.71,117.62,42.5529299]
[1644292978746,57.97498697,117.71,117.62,30.2929299]
[1644292978946,12.7552,117.68,117.61,24.7011]
[1644292979145,18.7552,117.68,117.61,24.7011]
[1644292979948,18.7552,117.68,117.62,38.38983537]
[1644292980451,12.7552,117.68,117.62,38.38983537]
[1644292980648,18.7552,117.68,117.62,38.38983537]
[1644292981249,19.0052,117.68,117.62,38.38983537]
[1644292981850,0.25,117.68,117.62,38.38983537]
[1644292982249,30.5289,117.7,117.62,38.38983537]
[1644292982449,76.81576261,117.7,117.62,38.38983537]
[1644292983854,43.2818,117.7,117.62,38.38983537]
[1644292984658,37.2818,117.7,117.62,38.38983537]
[1644292984853,43.2818,117.7,117.62,38.38983537]
[1644292986054,55.99459278,117.69,117.62,38.38983537]
[1644292986458,61.99459278,117.69,117.62,38.38983537]
[1644292986655,61.99459278,117.69,117.61,24.7011]
[1644292986854,61.99459278,117.69,117.58,1.21540109]
[1644292987056,22.822,117.68,117.58,23.4615]
[1644292987355,12.7576,117.66,117.58,23.4615]
[1644292987555,12.7576,117.66,117.59,35.26216827]
[1644292988161,18.7576,117.66,117.59,35.26216827]
[1644292988755,12.7559,117.67,117.6,1.8026482]
[1644292988957,22.822,117.68,117.6,1.8026482]
[1644292989155,22.822,117.68,117.59,47.52216827]
[1644292989354,22.822,117.68,117.59,47.77216827]
[1644292989754,22.822,117.68,117.59,49.57313819]
[1644292990255,48.01774564,117.67,117.59,49.57313819]
[1644292990555,48.01774564,117.67,117.59,47.77216827]
[1644292990760,12.7548,117.68,117.6,12.7548]
[1644292991658,53.42492657,117.68,117.61,6.78541338]
[1644292991859,59.42492657,117.68,117.61,19.53991338]
[1644292992261,59.67492657,117.68,117.61,19.53991338]
[1644292992563,59.67492657,117.68,117.59,12.26]
[1644292993661,19.0048,117.68,117.59,12.26]
[1644292993859,19.0048,117.68,117.6,12.7555]
[1644292994660,19.0048,117.68,117.61,30.86124013]
[1644292995362,0.25,117.68,117.62,1.80096992]
[1644292995763,1.4610081,117.72,117.62,25.09096992]
[1644292995967,1.2110081,117.72,117.62,25.09096992]
[1644292996165,1.2110081,117.72,117.63,1.80096992]
[1644292996363,1.2110081,117.72,117.63,12.98731144]
[1644292996364,49.95730518,117.72,117.63,12.98731144]
[1644292996564,43.95730518,117.72,117.63,11.43634152]
[1644292997664,43.95730518,117.72,117.63,11.18634152]
[1644292997864,62.70780518,117.72,117.63,23.93834152]
[1644292998265,64.16881328,117.72,117.63,23.93834152]
[1644292998467,62.95780518,117.72,117.63,23.93834152]
[1644292998764,62.95780518,117.72,117.63,12.752]
[1644292998965,64.16881328,117.72,117.63,12.752]
[1644292999767,62.95780518,117.72,117.63,12.752]
[1644293000771,62.95780518,117.72,117.64,9.18666078]
[1644293000972,62.95780518,117.72,117.64,21.93786078]
[1644293001367,62.95780518,117.72,117.64,12.7512]
[1644293001669,64.16881328,117.72,117.64,12.7512]
[1644293002969,62.95780518,117.72,117.65,10.07729739]
[1644293003169,62.70780518,117.72,117.65,10.07729739]
[1644293003571,62.70780518,117.72,117.64,12.7512]
[1644293003771,63.91881328,117.72,117.64,12.7512]
[1644293005568,62.70780518,117.72,117.64,12.7512]
[1644293006871,62.95780518,117.72,117.64,12.7512]
[1644293008674,62.95780518,117.72,117.63,12.7523]
[1644293009075,64.16881328,117.72,117.62,23.04]
[1644293009275,1.2110081,117.71,117.62,23.04]
[1644293009474,12.7555,117.69,117.6,24.8013]
[1644293009673,35.95192403,117.68,117.6,24.8013]
[1644293009874,35.95192403,117.68,117.6,37.5571]
[1644293010274,41.95192403,117.68,117.6,37.5571]
[1644293010476,42.20192403,117.68,117.6,37.5571]
[1644293010775,37.57312057,117.66,117.6,37.5571]
[1644293011576,43.57312057,117.66,117.6,37.5571]
[1644293012003,37.57312057,117.66,117.6,37.5571]
[1644293013300,37.57312057,117.66,117.6,24.8013]
[1644293013301,50.32972057,117.66,117.6,24.8013]
[1644293013505,56.32972057,117.66,117.58,24.0151]
[1644293014400,18.7566,117.66,117.59,1.8348999]
[1644293015203,18.7565,117.66,117.58,65.32379379]
[1644293015417,6.0,117.66,117.58,67.40869369]
[1644293015608,52.73634916,117.67,117.58,67.40869369]
[1644293016004,52.73634916,117.67,117.59,12.7565]
[1644293016204,52.98634916,117.67,117.59,12.7565]
[1644293016405,65.74194916,117.67,117.58,24.0151]
[1644293017206,65.74194916,117.67,117.58,76.52707038]
[1644293017606,65.49194916,117.67,117.58,76.52707038]
[1644293018208,65.49194916,117.67,117.58,36.7731]
[1644293018609,65.49194916,117.67,117.58,24.0151]
[1644293018808,65.74194916,117.67,117.58,24.0151]
[1644293019008,90.34334916,117.67,117.58,24.0151]
[1644293020808,90.34334916,117.67,117.58,38.6078999]
[1644293021610,90.34334916,117.67,117.59,4.64009516]
[1644293022010,90.34334916,117.67,117.58,38.6078999]
[1644293022209,90.34334916,117.67,117.58,36.773]
[1644293022410,90.34334916,117.67,117.58,24.0151]
[1644293023410,90.34334916,117.67,117.58,0.024]
[1644293023614,91.55435726,117.67,117.58,0.024]
[1644293023812,90.34334916,117.67,117.58,0.024]
[1644293024215,91.55435726,117.67,117.58,0.024]
[1644293024422,91.55435726,117.67,117.56,33.25281581]
[1644293024622,91.55435726,117.67,117.57,0.024]
[1644293024820,90.34334916,117.67,117.57,35.6513]
[1644293025121,90.34334916,117.67,117.58,8.81876584]
[1644293025321,90.34334916,117.67,117.57,37.4861999]
[1644293025521,90.34334916,117.67,117.57,35.6513]
[1644293025723,90.34334916,117.67,117.57,22.8923]
[1644293026124,91.55435726,117.67,117.57,22.8923]
[1644293026323,90.34334916,117.67,117.57,55.59455238]
[1644293026729,90.34334916,117.67,117.57,22.8923]
[1644293027425,93.68441056,117.67,117.57,0.024]
[1644293027626,1.2110081,117.66,117.57,0.024]
[1644293027832,12.763,117.64,117.57,0.024]
[1644293028032,34.60333753,117.63,117.57,0.024]
[1644293028231,34.60333753,117.63,117.55,27.0783911]
[1644293028632,40.60333753,117.63,117.55,39.24798901]
[1644293029030,12.7633,117.62,117.55,39.24798901]
[1644293029230,42.46298541,117.61,117.55,39.24798901]
[1644293029431,18.7633,117.62,117.55,39.24798901]
[1644293030751,40.58969651,117.61,117.55,52.00908901]
[1644293030950,40.58969651,117.61,117.55,39.8394911]
[1644293031150,59.35139651,117.61,117.55,39.8394911]
[1644293031550,59.60139651,117.61,117.55,39.8394911]
[1644293031751,46.83969651,117.61,117.55,39.8394911]
[1644293032153,6.25,117.61,117.55,39.8394911]
[1644293032352,0.25,117.61,117.55,39.8394911]
[1644293032552,6.25,117.61,117.55,39.8394911]
[1644293032751,6.0,117.61,117.55,39.8394911]
[1644293033152,71.8711,117.64,117.55,39.8394911]
[1644293033352,71.8711,117.64,117.56,0.024]
[1644293033554,47.53682491,117.63,117.56,0.024]
[1644293033754,12.7606,117.62,117.56,12.7603]
[1644293033953,6.0,117.63,117.56,12.7843]
[1644293034154,23.331,117.64,117.56,14.61464508]
[1644293034353,22.6677,117.67,117.57,12.26]
[1644293034560,22.6677,117.67,117.57,18.5143]
[1644293034755,70.16555383,117.67,117.58,13.83503474]
[1644293034953,70.16555383,117.67,117.58,26.09503474]
[1644293035155,70.16555383,117.67,117.58,12.26]
[1644293035554,12.7564,117.66,117.58,25.018]
[1644293035753,37.688,117.66,117.58,11.76]
[1644293036254,44.55281338,117.65,117.56,66.26874632]
[1644293036654,44.55281338,117.65,117.56,64.43840124]
[1644293036853,50.55281338,117.65,117.56,64.43840124]
[1644293037256,50.55281338,117.65,117.56,64.68840124]
[1644293037854,46.58882593,117.63,117.57,12.759]
[1644293040157,46.83882593,117.63,117.57,12.759]
[1644293040359,59.59842593,117.63,117.57,12.759]
[1644293040758,59.59842593,117.63,117.56,23.2066]
[1644293040958,65.59842593,117.63,117.56,23.2066]
[1644293041358,65.59842593,117.63,117.56,0.024]
[1644293041559,65.59842593,117.63,117.55,27.0543911]
[1644293041758,65.59842593,117.63,117.56,0.024]
[1644293041960,65.59842593,117.63,117.55,27.0783911]
[1644293042562,66.80943403,117.63,117.55,2.5670911]
[1644293043161,89.85843403,117.63,117.55,2.5670911]
[1644293044460,88.64742593,117.63,117.55,2.5670911]
[1644293044661,89.85843403,117.63,117.55,2.5670911]
[1644293044860,89.60843403,117.63,117.55,2.5670911]
[1644293045064,43.0196081,117.63,117.55,2.5670911]
[1644293045261,35.8086,117.63,117.56,1.83034508]
[1644293045461,35.8086,117.63,117.56,1.85434508]
[1644293045661,35.8086,117.63,117.56,2.10434508]
[1644293045864,35.8086,117.63,117.56,14.11434508]
[1644293046062,35.8086,117.63,117.57,32.46152788]
[1644293046664,1.2110081,117.65,117.58,1.83034508]
[1644293046863,25.2932081,117.66,117.58,1.83034508]
[1644293047063,25.2932081,117.66,117.57,12.26]
[1644293047262,25.2932081,117.66,117.58,12.758]
[1644293047462,31.2932081,117.66,117.57,36.893]
[1644293047666,25.2932081,117.66,117.57,24.633]
[1644293047863,12.7594,117.64,117.57,24.633]
[1644293048062,45.9801273,117.63,117.57,24.633]
[1644293048863,0.25,117.63,117.57,37.3919]
[1644293049264,19.0094,117.64,117.57,37.3919]
[1644293049665,13.0094,117.64,117.58,12.26]
[1644293049965,61.4301414,117.64,117.58,28.14910353]
[1644293050169,61.4301414,117.64,117.58,25.0182]
[1644293050365,13.0094,117.64,117.58,25.0182]
[1644293050765,13.0094,117.64,117.57,24.633]
[1644293051366,55.57872004,117.64,117.57,24.633]
[1644293051565,55.57872004,117.64,117.58,4.02995018]
[1644293051765,55.57872004,117.64,117.57,37.3922]
[1644293051966,61.57872004,117.64,117.57,37.3922]
[1644293053768,61.57872004,117.64,117.58,4.64383834]
[1644293054167,19.0094,117.64,117.58,4.64383834]
[1644293055272,20.2204081,117.64,117.58,4.64383834]
[1644293055470,61.29000096,117.64,117.57,37.3922]
[1644293055766,61.29000096,117.64,117.56,0.024]
[1644293055967,1.2110081,117.63,117.56,0.024]
[1644293056167,12.7623,117.61,117.55,2.5670911]
[1644293056367,59.15960912,117.61,117.55,2.5670911]
[1644293057771,59.15960912,117.61,117.55,15.3285911]
[1644293057969,37.4529,117.62,117.55,15.3285911]
[1644293058172,43.4529,117.62,117.55,15.3285911]
[1644293058969,91.76381674,117.62,117.55,21.3285911]
[1644293060068,92.01381674,117.62,117.55,21.3285911]
[1644293061771,92.01381674,117.62,117.55,15.3285911]
[1644293062573,92.01381674,117.62,117.56,3.38299367]
[1644293064076,92.01381674,117.62,117.56,16.14359367]
[1644293064277,43.4529,117.62,117.56,16.14359367]
[1644293064478,30.6917,117.62,117.56,16.14359367]
[1644293064776,30.6917,117.62,117.56,12.7606]
[1644293065685,43.4528,117.62,117.55,15.3283911]
[1644293065880,45.5850929,117.61,117.55,15.3283911]
[1644293066582,43.4528,117.62,117.55,15.3283911]
[1644293067783,83.38865166,117.62,117.55,15.3043911]
[1644293067983,83.38865166,117.62,117.55,15.3283911]
[1644293068188,77.13865166,117.62,117.55,17.15873618]
[1644293068480,77.13865166,117.62,117.55,17.40873618]
[1644293069082,12.7611,117.62,117.55,15.90873618]
[1644293069282,13.9709081,117.63,117.55,28.16873618]
[1644293069481,7.2110081,117.63,117.55,28.16873618]
[1644293069684,1.2110081,117.64,117.57,12.759]
[1644293070083,1.2110081,117.64,117.58,2.75479799]
[1644293070286,13.9701081,117.64,117.58,2.75479799]
[1644293070488,1.2110081,117.64,117.59,1.83034508]
[1644293070688,21.6027081,117.66,117.59,14.58674508]
[1644293070986,2.42201619,117.69,117.59,14.83674508]
[1644293071285,12.7544,117.68,117.6,24.9872]
[1644293071786,13.0044,117.68,117.6,24.9872]
[1644293072402,12.7544,117.68,117.6,24.9872]
[1644293072706,15.17561619,117.69,117.61,15.59331308]
[1644293072906,90.3273,117.71,117.61,15.59331308]
[1644293072907,50.23321619,117.71,117.61,15.59331308]
[1644293073103,50.23321619,117.71,117.61,20.012968]
[1644293073408,50.23321619,117.71,117.61,19.762968]
[1644293073603,36.16909875,117.7,117.62,34.73959201]
[1644293073804,36.16909875,117.7,117.62,47.74259201]
[1644293074002,36.16909875,117.7,117.62,47.49259201]
[1644293074407,36.16909875,117.7,117.62,12.753]
[1644293074603,42.16909875,117.7,117.62,12.753]
[1644293075504,42.41909875,117.7,117.62,12.753]
[1644293075705,55.17209875,117.7,117.62,37.5962]
[1644293075908,55.17209875,117.7,117.63,1.008568]
[1644293076705,19.003,117.7,117.63,13.761068]
[1644293077103,18.753,117.7,117.63,13.761068]
[1644293077403,18.753,117.7,117.63,1.008568]
[1644293078410,24.3569,117.69,117.63,1.008568]
[1644293078604,12.7568,117.68,117.63,1.008568]
[1644293079006,18.7568,117.68,117.6,1.008568]
[1644293080810,18.7568,117.68,117.6,13.764468]
[1644293081311,19.0068,117.68,117.6,14.8075591]
[1644293082210,19.0068,117.68,117.6,15.0575591]
[1644293083011,19.0068,117.68,117.66,1.0430911]
[1644293083213,6.0,117.68,117.66,1.0430911]
[1644293083412,6.0,117.68,117.67,1.008568]
[1644293083617,6.0,117.69,117.67,1.008568]
[1644293083813,23.6093,117.71,117.67,1.008568]
[1644293084013,48.68660384,117.72,117.67,1.008568]
[1644293084414,61.43680384,117.72,117.67,1.008568]
[1644293084613,59.8199536,117.75,117.67,1.008568]
[1644293084813,14.89723741,117.75,117.67,1.008568]
[1644293085013,6.0,117.75,117.67,1.008568]
[1644293085212,32.86631619,117.76,117.67,1.008568]
[1644293085616,48.1209448,117.75,117.67,1.008568]
[1644293086119,77.3891448,117.75,117.67,1.008568]
[1644293086716,12.7482,117.74,117.67,13.756768]
[1644293087115,18.7482,117.74,117.67,13.756768]
[1644293087717,18.9982,117.74,117.67,13.756768]
[1644293089817,18.9982,117.74,117.67,1.008568]
[1644293090620,21.1282533,117.74,117.67,1.008568]
[1644293091223,478.1507877,117.84,117.68,47.0]
[1644293091421,478.1507877,117.84,117.69,12.0]
[1644293091618,2.429e-05,117.87,117.74,153.22]
[1644293091819,2.40744867,117.88,117.75,58.1731]
[1644293092018,46.5179,117.89,117.75,60.00911941]
[1644293092218,44.07015002,117.88,117.76,9.46292571]
[1644293092419,44.07015002,117.88,117.78,153.22]
[1644293092621,44.07015002,117.88,117.79,12.26]
[1644293094520,44.07015002,117.88,117.79,18.26]
[1644293094724,44.07015002,117.88,117.79,12.26]
[1644293094922,44.07015002,117.88,117.81,8.14403753]
[1644293095120,44.07015002,117.88,117.8,166.960168]
[1644293095121,44.07015002,117.88,117.82,12.26]
[1644293095321,24.36428238,117.94,117.82,12.26]
[1644293095523,24.36428238,117.94,117.82,165.73]
[1644293095722,30.36428238,117.94,117.82,165.73]
[1644293096222,30.36428238,117.94,117.82,184.98523171]
[1644293096426,36.5678831,117.93,117.82,190.98523171]
[1644293096624,42.5678831,117.93,117.82,184.98523171]
[1644293096823,42.5678831,117.93,117.83,1.83601941]
[1644293097023,42.5678831,117.93,117.84,12.26]
[1644293097423,42.5678831,117.93,117.84,18.26]
[1644293098023,42.5678831,117.93,117.85,1.008568]
[1644293098223,42.5678831,117.93,117.86,12.26]
[1644293098523,42.8178831,117.93,117.86,12.26]
[1644293101025,42.8178831,117.93,117.87,1.008568]
[1644293101226,42.8178831,117.93,117.87,13.268568]
[1644293103328,42.5678831,117.93,117.87,13.268568]
[1644293104831,42.8178831,117.93,117.87,13.268568]
[1644293108232,42.5678831,117.93,117.87,13.268568]
[1644293111738,42.8178831,117.93,117.87,13.268568]
[1644293111939,55.5493831,117.93,117.86,12.26]
[1644293112137,60.0,117.92,117.8,153.22]
[1644293112337,85.0051533,117.92,117.81,12.26]
[1644293112538,23.1301,117.91,117.81,12.26]
[1644293112940,46.09527943,117.9,117.81,12.26]
[1644293113159,64.82977943,117.9,117.81,12.26]
[1644293113339,22.8751,117.92,117.82,34.61197559]
[1644293113539,0.40038238,117.94,117.83,12.26]
[1644293113740,0.40038238,117.94,117.84,23.8666]
[1644293113941,0.40038238,117.94,117.85,165.48]
[1644293114139,0.40038238,117.94,117.85,171.48]
[1644293114343,0.40038238,117.94,117.86,32.96417406]
[1644293114542,0.40038238,117.94,117.87,12.26]
[1644293114841,0.40038238,117.94,117.88,34.61197559]
[1644293115040,0.40038238,117.94,117.89,12.26]
[1644293115441,0.40038238,117.94,117.9,32.96417406]
[1644293115644,0.40038238,117.94,117.91,12.26]
[1644293116043,0.40038238,117.94,117.92,4.8864792]
[1644293116243,0.40038238,117.94,117.92,17.1464792]
[1644293119353,12.7233,118.0,117.92,51.75845479]
[1644293119548,0.21670402,118.01,117.92,206.81437907]
[1644293119748,0.21670402,118.01,117.93,153.22]
[1644293119948,0.21670402,118.01,117.94,12.26]
[1644293120248,0.21670402,118.01,117.94,45.22417406]
[1644293120672,0.21670402,118.01,117.94,12.26]
[1644293124054,2.1300533,118.0,117.94,12.26]
[1644293124253,42.74914497,117.99,117.92,12.26]
[1644293124655,48.74914497,117.99,117.92,12.26]
[1644293124855,50.87919827,117.99,117.92,12.26]
[1644293125754,63.60409827,117.99,117.92,12.26]
[1644293126354,48.74914497,117.99,117.92,12.26]
[1644293126654,42.74914497,117.99,117.92,12.26]
[1644293128454,48.99914497,117.99,117.92,12.26]
[1644293131162,42.74914497,117.99,117.92,12.26]
[1644293131862,41.70605387,117.99,117.92,12.26]
[1644293132763,41.95605387,117.99,117.92,12.26]
[1644293133365,47.95605387,117.99,117.92,12.26]
[1644293133563,41.95605387,117.99,117.92,12.26]
[1644293134565,50.08610717,117.99,117.92,12.26]
[1644293134867,50.08610717,117.99,117.89,35.1402]
[1644293135065,47.95605387,117.99,117.89,35.1402]
[1644293135864,60.67975387,117.99,117.89,35.1402]
[1644293136264,47.08205941,117.97,117.89,35.1402]
[1644293136665,53.08205941,117.97,117.89,35.1402]
[1644293140574,66.05765941,117.97,117.89,35.1402]
[1644293141074,53.08205941,117.97,117.89,12.26]
[1644293141276,53.08205941,117.97,117.89,14.09592428]
[1644293141475,53.08205941,117.97,117.9,48.2271072]
[1644293141676,53.08205941,117.97,117.91,12.26]
[1644293141875,6.0,117.97,117.91,12.26]
[1644293142078,29.74120402,118.01,117.91,12.26]
[1644293142275,2.41243182,118.0,117.91,35.4189]
[1644293142678,8.41243182,118.0,117.92,1.83592428]
[1644293142976,37.83487078,117.99,117.93,32.65213355]
[1644293143187,41.42243896,117.99,117.93,32.65213355]
[1644293143590,6.0,117.99,117.93,32.65213355]
[1644293144089,29.74120402,118.01,117.93,32.65213355]
[1644293144289,2.41692053,118.0,117.93,32.65213355]
[1644293144489,2.41692053,118.0,117.94,1.83592428]
[1644293144693,45.96985801,118.0,117.95,48.65336867]
[1644293144889,43.55293748,118.0,117.95,48.65336867]
[1644293145294,43.55293748,118.0,117.95,12.26]
[1644293145692,43.80293748,118.0,117.95,12.26]
[1644293147193,2.41668196,117.99,117.95,12.26]
[1644293147997,43.80293748,118.0,117.95,12.26]
[1644293148193,43.55293748,118.0,117.95,12.26]
[1644293151699,2.41713084,117.99,117.95,12.26]
[1644293152398,37.9212693,117.98,117.95,12.26]
[1644293152800,37.9212693,117.98,117.96,3.03219997]
[1644293153097,37.9212693,117.98,117.94,12.26]
[1644293155798,38.1712693,117.98,117.94,12.26]
[1644293156600,0.25,117.98,117.94,12.26]
[1644293156799,0.21670402,118.01,117.94,12.26]
[1644293156999,2.41715042,118.0,117.94,12.26]
[1644293157600,42.43716772,117.99,117.94,12.26]
[1644293159900,0.21670402,118.01,117.94,37.85439829]